bitfinex/quotes_ETHUSD_20250508
["timestamp","ask_amount","ask_price","bid_price","bid_amount"]
[1746691266105,0.06480465,1929.0,1928.6,7.46637612]
[1746691266106,5.13398075,1928.8,1928.6,7.46637612]
[1746691266306,5.18445887,1928.9,1928.7,0.74663761]
[1746691266613,5.18445887,1928.9,1928.8,0.5910989]
[1746691267010,5.24900977,1929.0,1928.8,0.5910989]
[1746691267245,11.20893227,1929.1,1928.9,6.08]
[1746691267453,11.20893227,1929.1,1929.0,6.08]
[1746691267607,5.18358995,1929.2,1929.0,6.67102169]
[1746691267813,5.1828111,1929.5,1929.1,6.08]
[1746691267814,5.18311331,1929.4,1929.1,6.08]
[1746691268236,5.18260999,1929.6,1929.3,0.7995]
[1746691268445,5.18229201,1929.7,1929.4,6.08]
[1746691268749,5.18268981,1929.5,1929.4,6.08]
[1746691269113,5.18268981,1929.5,1929.4,6.67086731]
[1746691269312,5.18268981,1929.5,1929.4,7.33795404]
[1746691269760,5.18223958,1929.7,1929.5,0.8239]
[1746691269960,5.18223958,1929.7,1929.4,7.33795404]
[1746691270252,0.06478602,1929.8,1929.6,0.59079015]
[1746691270428,5.18242122,1929.6,1929.5,0.59082873]
[1746691270614,5.18268981,1929.5,1929.4,6.74708673]
[1746691271437,5.24720661,1929.6,1929.4,6.74708673]
[1746691271438,5.2473335,1929.6,1929.4,6.74708673]
[1746691271609,5.2473335,1929.6,1929.5,0.67470867]
[1746691271944,5.2473335,1929.6,1929.5,6.75470867]
[1746691271945,0.06478539,1929.6,1929.5,6.75470867]
[1746691272110,5.18231875,1929.7,1929.5,7.51310867]
[1746691272317,5.18215266,1929.7,1929.5,7.51310867]
[1746691272537,5.2468082,1929.8,1929.6,0.75131087]
[1746691272721,5.18202367,1929.8,1929.6,0.75131087]
[1746691272927,5.986,1930.0,1929.7,6.08]
[1746691272928,5.24649695,1929.9,1929.7,6.08]
[1746691273163,5.18145403,1930.0,1929.8,6.08]
[1746691273321,5.18125187,1930.1,1929.8,6.08]
[1746691273523,5.18134715,1930.0,1929.9,0.608]
[1746691273916,5.24602073,1930.1,1929.9,0.608]
[1746691274260,0.8026,1930.6,1930.0,6.08]
[1746691274426,5.18074655,1930.3,1930.1,6.08]
[1746691274830,5.18037964,1930.4,1930.1,6.08]
[1746691275039,5.18054188,1930.3,1930.2,0.608]
[1746691275443,5.18081027,1930.2,1930.1,6.08]
[1746691275823,5.1810787,1930.1,1930.0,6.08]
[1746691276025,5.24584747,1930.1,1930.0,6.08]
[1746691276224,5.1810787,1930.1,1930.0,6.08]
[1746691277138,0.06476632,1930.3,1930.0,6.66023605]
[1746691277328,5.985,1930.5,1930.1,1.44082361]
[1746691277529,5.18044382,1930.4,1930.2,0.58037362]
[1746691277725,11.16514473,1930.5,1930.3,6.08]
[1746691277927,1.42835879,1931.2,1930.4,0.58029652]
[1746691278125,5.17973686,1930.6,1930.5,6.08]
[1746691278370,5.24448816,1930.6,1930.5,6.65875541]
[1746691278543,5.17961023,1930.7,1930.5,7.32478506]
[1746691279078,5.17946858,1930.7,1930.6,0.8087]
[1746691279372,5.17937568,1930.8,1930.6,1.38741687]
[1746691280092,5.17907942,1930.9,1930.6,1.41329185]
[1746691280377,5.17877116,1931.0,1930.7,6.10586883]
[1746691280573,5.1789321,1930.9,1930.8,6.69058688]
[1746691280872,5.1789321,1930.9,1930.8,6.65863981]
[1746691281578,5.1789321,1930.9,1930.4,6.08]
[1746691281579,5.95880518,1930.5,1930.4,6.08]
[1746691281750,5.18095336,1930.2,1930.0,1.0]
[1746691281952,5.18070895,1930.3,1930.1,6.55844855]
[1746691282182,5.18075868,1930.3,1930.1,6.55844855]
[1746691282383,5.18081027,1930.2,1930.1,6.55844855]
[1746691282893,5.24557163,1930.2,1930.1,6.55844855]
[1746691284287,5.19479473,1930.2,1930.1,6.55844855]
[1746691284692,5.81494482,1930.2,1930.1,6.55844855]
[1746691285256,5.19479473,1930.2,1930.1,6.55844855]
[1746691286988,9.51349473,1930.2,1930.1,0.47844855]
[1746691287302,8.7310787,1930.1,1930.0,1.0]
[1746691287789,8.1810787,1930.1,1930.0,1.0]
[1746691287985,9.58905991,1930.1,1930.0,1.0]
[1746691288185,6.58905991,1930.1,1930.0,1.0]
[1746691288561,6.65383565,1930.1,1930.0,1.0]
[1746691293083,6.65383565,1930.1,1930.0,1.48241328]
[1746691294293,5.24585444,1930.1,1930.0,1.48241328]
[1746691294503,5.1810787,1930.1,1930.0,7.56241328]
[1746691296275,5.18043545,1930.4,1930.1,6.8851]
[1746691296480,5.1801292,1930.5,1930.2,0.50698746]
[1746691296678,5.1801292,1930.5,1930.2,2.10519124]
[1746691296994,5.18029596,1930.4,1930.2,2.58785166]
[1746691297299,5.18029596,1930.4,1930.2,0.98964788]
[1746691297605,5.17996955,1930.6,1930.2,0.98964788]
[1746691297807,5.17935971,1930.8,1930.4,4.16717991]
[1746691297968,5.17935971,1930.8,1930.5,0.02587498]
[1746691298162,5.17935971,1930.8,1930.6,0.48093148]
[1746691298396,5.17935971,1930.8,1930.7,6.08]
[1746691298597,5.17935971,1930.8,1930.7,6.56089295]
[1746691298912,6.21519787,1930.8,1930.7,6.56089295]
[1746691299198,6.08519787,1930.8,1930.7,6.56089295]
[1746691299359,6.14994329,1930.8,1930.7,6.56089295]
[1746691299566,12.90984329,1930.8,1930.7,0.48089295]
[1746691299795,11.16227599,1930.8,1930.7,6.08]
[1746691299971,11.06427209,1930.8,1930.7,6.08]
[1746691300297,11.06427209,1930.8,1930.7,6.56100698]
[1746691301678,11.06427209,1930.8,1930.7,0.48100698]
[1746691302099,5.18027351,1930.4,1930.3,0.7685]
[1746691302303,5.18027351,1930.4,1930.3,7.32697215]
[1746691302891,5.18027351,1930.4,1930.3,6.55847215]
[1746691305313,6.22278579,1930.4,1930.3,6.55847215]
[1746691305682,6.28754428,1930.4,1930.3,6.55847215]
[1746691306675,5.8342192,1930.8,1930.3,6.55847215]
[1746691306676,0.8235,1931.1,1930.3,7.31517215]
[1746691306869,5.17948146,1930.7,1930.4,6.56302474]
[1746691307091,10.35879869,1930.8,1930.5,6.51918657]
[1746691307293,5.17949676,1930.7,1930.5,6.51918657]
[1746691307615,5.17949676,1930.7,1930.6,0.48302474]
[1746691307826,0.0647416,1931.0,1930.6,0.48302474]
[1746691308119,5.17935104,1930.8,1930.7,0.755]
[1746691308326,5.17935104,1930.8,1930.7,1.1941095]
[1746691310810,5.17935104,1930.8,1930.7,7.2741095]
[1746691311711,5.17935104,1930.8,1930.7,6.5191095]
[1746691312016,6.27994121,1930.8,1930.7,6.5191095]
[1746691313204,5.24409298,1930.8,1930.7,6.5191095]
[1746691317926,6.07499298,1930.8,1930.7,0.4391095]
[1746691318223,9.07499298,1930.8,1930.7,0.4391095]
[1746691318528,5.17946858,1930.7,1930.6,6.08]
[1746691318820,6.60491474,1930.7,1930.6,6.4807192]
[1746691319043,6.66966531,1930.7,1930.6,6.4807192]
[1746691319198,12.61666531,1930.7,1930.6,6.4807192]
[1746691319400,13.35181474,1930.7,1930.6,6.4807192]
[1746691319601,13.90181474,1930.7,1930.6,6.08]
[1746691320014,13.85103784,1930.7,1930.6,6.08]
[1746691322337,11.07569168,1930.7,1930.6,6.48170044]
[1746691323323,11.62569168,1930.7,1930.6,6.48170044]
[1746691323500,15.45189168,1930.7,1930.6,0.40170044]
[1746691323697,5.1810787,1930.1,1930.0,6.08]
[1746691323898,5.24584562,1930.1,1930.0,6.48193168]
[1746691324704,5.1810787,1930.1,1930.0,6.48193168]
[1746691325252,5.1810787,1930.1,1930.0,6.96610984]
[1746691326140,5.1810787,1930.1,1930.0,7.75610984]
[1746691326299,5.1810787,1930.1,1930.0,8.53172082]
[1746691326507,5.18100747,1930.2,1930.0,8.53172082]
[1746691326713,5.18065512,1930.3,1930.1,6.08]
[1746691326940,5.18065512,1930.3,1930.2,1.70354676]
[1746691327530,5.18065512,1930.3,1930.2,2.48190144]
[1746691327747,5.947,1930.7,1930.2,2.48190144]
[1746691327748,5.18013591,1930.5,1930.3,6.08]
[1746691327923,5.18027351,1930.4,1930.2,2.47020606]
[1746691328144,5.18027351,1930.4,1930.2,1.20767322]
[1746691328338,5.18027351,1930.4,1930.3,0.48406354]
[1746691328514,5.1799042,1930.6,1930.4,0.7855]
[1746691328717,5.1799042,1930.6,1930.4,0.81138958]
[1746691329028,5.17968314,1930.7,1930.5,0.48406354]
[1746691329227,5.17968314,1930.7,1930.2,14.97808345]
[1746691329228,5.17968314,1930.7,1930.6,7.32126354]
[1746691329527,5.17968314,1930.7,1930.6,8.05338989]
[1746691329722,5.17968314,1930.7,1930.6,7.32126354]
[1746691331154,5.17932839,1930.8,1930.6,7.32126354]
[1746691331449,5.17946858,1930.7,1930.6,6.8372]
[1746691331655,5.17930873,1930.8,1930.6,6.8372]
[1746691331829,5.17946858,1930.7,1930.6,6.8372]
[1746691332030,5.17946858,1930.7,1930.6,7.52092]
[1746691332240,5.17936715,1930.8,1930.6,7.52092]
[1746691332427,5.17946858,1930.7,1930.6,7.52092]
[1746691332634,5.17946858,1930.7,1930.6,8.00476935]
[1746691333663,5.17913849,1930.9,1930.6,8.00476935]
[1746691333664,5.17904467,1930.9,1930.6,8.00476935]
[1746691333872,5.17920033,1930.8,1930.7,6.88047694]
[1746691334071,5.17920033,1930.8,1930.7,7.36432629]
[1746691334549,5.17885802,1931.0,1930.7,7.36432629]
[1746691334550,5.17908973,1930.9,1930.7,7.36432629]
[1746691334761,5.17908973,1930.9,1930.8,0.48384935]
[1746691335383,5.17908973,1930.9,1930.8,6.56384935]
[1746691335597,5.17908973,1930.9,1930.8,7.30028198]
[1746691336242,5.17850341,1931.1,1930.8,8.09968198]
[1746691336587,5.17686362,1931.7,1931.2,6.0]
[1746691336738,5.17690038,1931.7,1931.3,6.8794]
[1746691336939,5.24071761,1932.0,1931.3,6.8794]
[1746691336940,5.17747734,1931.5,1931.4,0.39161454]
[1746691337175,5.17747734,1931.5,1931.4,0.48384935]
[1746691337477,5.17747734,1931.5,1931.4,0.87546389]
[1746691337841,6.00207734,1931.5,1931.4,0.87546389]
[1746691338182,5.12670044,1931.5,1931.4,0.39161454]
[1746691338348,5.17759138,1931.4,1931.3,6.08]
[1746691338553,5.17759138,1931.4,1931.3,6.46969352]
[1746691338554,5.24231418,1931.4,1931.3,6.46969352]
[1746691339369,6.06551418,1931.4,1931.3,6.46969352]
[1746691340137,5.24231418,1931.4,1931.3,6.46969352]
[1746691341998,6.05411418,1931.4,1931.3,6.46969352]
[1746691342297,7.82523352,1931.4,1931.3,0.38969352]
[1746691342600,5.1786639,1931.0,1930.9,6.08]
[1746691342893,5.24322515,1931.1,1931.0,6.08]
[1746691343194,5.24322515,1931.1,1931.0,6.43736854]
[1746691343195,5.17848769,1931.1,1931.0,6.43736854]
[1746691347775,5.17839573,1931.1,1931.0,6.43736854]
[1746691347977,5.17839573,1931.1,1931.0,7.16690086]
[1746691348767,5.17829066,1931.2,1931.0,7.16690086]
[1746691348962,0.06472953,1931.4,1931.0,7.16690086]
[1746691349170,0.06472953,1931.4,1931.1,6.8666]
[1746691349171,5.17777202,1931.4,1931.1,6.8666]
[1746691349370,5.17796661,1931.3,1931.2,0.35807822]
[1746691349582,5.17812758,1931.2,1931.1,6.8666]
[1746691349779,5.17812758,1931.2,1931.1,7.22471673]
[1746691349980,5.17812758,1931.2,1931.1,7.70733036]
[1746691350183,5.17812758,1931.2,1931.1,7.22471673]
[1746691351114,5.17812758,1931.2,1931.1,7.70729596]
[1746691351506,5.17812758,1931.2,1931.1,7.22471673]
[1746691352490,5.17812758,1931.2,1931.1,7.70741602]
[1746691352696,5.17812758,1931.2,1931.1,6.92081602]
[1746691353069,5.17812758,1931.2,1931.1,6.43811673]
[1746691353404,6.2137276,1931.2,1931.1,6.43811673]
[1746691353708,7.08325924,1931.2,1931.1,6.43811673]
[1746691354425,7.08325924,1931.2,1931.1,0.35811673]
[1746691354573,7.08325924,1931.2,1930.8,6.08]
[1746691354574,5.1789321,1930.9,1930.8,6.08]
[1746691354775,5.1789321,1930.9,1930.8,6.40842086]
[1746691355873,5.17883843,1931.0,1930.8,6.89189124]
[1746691356177,5.17886532,1931.0,1930.8,7.65860036]
[1746691356367,5.1789321,1930.9,1930.8,7.17512998]
[1746691356701,5.1281552,1930.9,1930.8,7.17512998]
[1746691356906,5.1281552,1930.9,1930.8,7.65884632]
[1746691358022,5.17884333,1931.0,1930.8,7.65884632]
[1746691358421,11.09389529,1931.3,1930.8,7.65884632]
[1746691358589,5.1789245,1931.0,1930.9,6.08]
[1746691358789,5.1789245,1931.0,1930.9,6.86583402]
[1746691359101,5.17854678,1931.1,1930.9,6.86583402]
[1746691359408,5.916,1931.3,1930.9,6.86583402]
[1746691359409,11.0939978,1931.3,1931.0,6.9062]
[1746691359572,5.17839573,1931.1,1931.0,6.9062]
[1746691359975,5.17839573,1931.1,1931.0,6.08]
[1746691360420,5.17839573,1931.1,1931.0,6.56425178]
[1746691361407,5.17807548,1931.3,1931.1,0.7533]
[1746691361607,5.17812758,1931.2,1931.1,0.7533]
[1746691361828,5.17812758,1931.2,1931.0,6.08]
[1746691361829,5.17839573,1931.1,1931.0,6.08]
[1746691362876,5.17839573,1931.1,1931.0,6.56434816]
[1746691363688,5.17839573,1931.1,1931.0,6.51434816]
[1746691364299,5.17839573,1931.1,1931.0,6.37249748]
[1746691367094,5.17839573,1931.1,1931.0,6.67447181]
[1746691369290,5.17812758,1931.2,1931.0,6.67447181]
[1746691369692,5.17812758,1931.2,1931.1,0.48434816]
[1746691370127,5.17812758,1931.2,1931.1,0.78625778]
[1746691370704,5.17812758,1931.2,1931.1,6.6744071]
[1746691374528,5.10804668,1931.2,1931.1,6.6744071]
[1746691375538,5.88954668,1931.2,1931.1,6.6744071]
[1746691375833,7.00276155,1931.2,1931.1,6.19005894]
[1746691376020,7.06749315,1931.2,1931.1,6.19005894]
[1746691376635,7.00276155,1931.2,1931.1,6.19005894]
[1746691377499,5.10804668,1931.2,1931.1,6.67494239]
[1746691377698,5.17785947,1931.3,1931.2,0.7639]
[1746691377919,5.17785947,1931.3,1931.2,7.13693277]
[1746691378135,5.17785947,1931.3,1931.2,7.43699726]
[1746691379344,5.17785947,1931.3,1931.2,8.57094004]
[1746691379508,5.17785947,1931.3,1931.2,7.06075629]
[1746691380440,5.17785947,1931.3,1931.2,6.67309726]
[1746691383145,5.17785947,1931.3,1931.2,7.47329726]
[1746691384123,5.17785947,1931.3,1931.2,7.86991132]
[1746691384429,5.17785947,1931.3,1931.2,6.67309726]
[1746691384766,6.29586827,1931.3,1931.2,6.67309726]
[1746691385055,6.36059204,1931.3,1931.2,6.18821381]
[1746691385606,5.17785947,1931.3,1931.2,6.18821381]
[1746691386324,5.17785947,1931.3,1931.2,6.67308216]
[1746691389125,5.99465947,1931.3,1931.2,6.67308216]
[1746691389332,5.99465947,1931.3,1931.2,6.18821381]
[1746691389525,6.05938923,1931.3,1931.2,6.18821381]
[1746691389730,7.183091,1931.3,1931.2,6.18821381]
[1746691392660,7.1276409,1931.3,1931.2,6.18821381]
[1746691394832,7.1276409,1931.3,1931.2,0.30006449]
[1746691395073,7.1276409,1931.3,1930.8,5.88814932]
[1746691395074,5.1789321,1930.9,1930.8,5.88814932]
[1746691395834,5.1789321,1930.9,1930.8,6.37273395]
[1746691397084,5.1789321,1930.9,1930.8,6.62938628]
[1746691399684,5.1789321,1930.9,1930.8,7.37013491]
[1746691400068,5.1789321,1930.9,1930.8,6.62938628]
[1746691404879,5.17883672,1931.0,1930.8,8.4000176]
[1746691405290,5.17883672,1931.0,1930.9,0.48458463]
[1746691405649,5.17883672,1931.0,1930.9,0.72154117]
[1746691407454,5.17825053,1931.2,1931.0,0.8202]
[1746691407640,5.17825053,1931.2,1931.1,0.2368421]
[1746691408077,5.17825053,1931.2,1931.1,0.72142673]
[1746691408491,11.03500274,1931.3,1931.1,0.72142673]
[1746691408797,11.03500274,1931.3,1931.2,6.37273395]
[1746691409079,11.03500274,1931.3,1931.2,6.6095787]
[1746691411135,11.03485947,1931.3,1931.2,7.27053657]
[1746691411419,5.17785947,1931.3,1931.2,7.27053657]
[1746691411584,5.17785947,1931.3,1931.2,6.6095787]
[1746691415716,5.99465947,1931.3,1931.2,6.6095787]
[1746691415922,5.99465947,1931.3,1931.2,6.12499407]
[1746691417533,5.17785947,1931.3,1931.2,6.12499407]
[1746691424435,5.17785947,1931.3,1931.2,5.88814932]
[1746691424728,5.98295947,1931.3,1931.2,6.12361449]
[1746691424934,7.02498546,1931.3,1931.2,6.12361449]
[1746691425129,7.08971464,1931.3,1931.2,6.12361449]
[1746691425337,7.02498546,1931.3,1931.2,6.12361449]
[1746691427983,9.41034589,1931.3,1931.2,0.23546517]
[1746691428104,12.41034589,1931.3,1931.2,0.23546517]
[1746691428304,6.4837639,1931.0,1930.9,5.88814932]
[1746691428545,13.53973248,1931.0,1930.9,5.88814932]
[1746691428716,13.47498948,1931.0,1930.9,5.88814932]
[1746691429301,16.47498948,1931.0,1930.9,5.88814932]
[1746691429551,5.18000518,1930.5,1930.4,5.88814932]
[1746691429841,5.18027351,1930.4,1930.3,5.88814932]
[1746691430015,5.18027351,1930.4,1930.3,6.59248157]
[1746691430559,5.18027351,1930.4,1930.3,7.07692067]
[1746691430747,5.17985593,1930.6,1930.3,7.84352067]
[1746691432039,5.18027351,1930.4,1930.3,6.37219123]
[1746691432549,5.18027351,1930.4,1930.3,7.12492768]
[1746691437715,5.18027351,1930.4,1930.3,6.98301821]
[1746691442076,5.18027351,1930.4,1930.3,7.16911291]
[1746691442967,5.18012032,1930.5,1930.3,7.16911291]
[1746691443156,5.17990823,1930.6,1930.3,7.16911291]
[1746691443357,10.35988261,1930.6,1930.4,6.94719305]
[1746691443557,5.17990823,1930.6,1930.5,5.74623985]
[1746691443868,5.17990823,1930.6,1930.5,5.93225749]
[1746691445172,5.17990823,1930.6,1930.5,6.75025749]
[1746691445830,5.1795201,1930.7,1930.5,7.23385245]
[1746691446061,5.1795201,1930.7,1930.5,7.54533386]
[1746691446531,5.1795201,1930.7,1930.6,0.48367324]
[1746691446731,5.1795201,1930.7,1930.5,7.54533386]
[1746691446947,5.1795201,1930.7,1930.6,0.18561979]
[1746691447651,5.1795201,1930.7,1930.5,7.35931622]
[1746691447981,5.17948664,1930.7,1930.6,0.6693673]
[1746691448858,5.17929155,1930.8,1930.6,6.41560715]
[1746691449192,5.17929155,1930.8,1930.6,6.73472799]
[1746691449679,5.17929155,1930.8,1930.7,0.48388755]
[1746691449887,5.17929155,1930.8,1930.7,0.66946881]
[1746691450444,5.94619155,1930.8,1930.7,0.66946881]
[1746691450655,7.06519951,1930.8,1930.7,0.18558126]
[1746691450861,7.12994322,1930.8,1930.7,0.18558126]
[1746691454776,7.12994322,1930.8,1930.7,5.93182111]
[1746691455320,7.12994322,1930.8,1930.7,5.74623985]
[1746691457220,5.18027351,1930.4,1930.3,5.74623985]
[1746691457379,7.19940078,1930.4,1930.3,5.74623985]
[1746691457726,10.19940078,1930.4,1930.3,5.74623985]
[1746691460735,10.19940078,1930.4,1929.8,5.74623985]
[1746691460736,5.18161562,1929.9,1929.8,5.74623985]
[1746691460931,5.2463882,1929.9,1929.8,5.74623985]
[1746691461231,5.2463882,1929.9,1929.8,5.88889696]
[1746691462834,6.28917118,1929.9,1929.8,5.88889696]
[1746691463582,5.2463882,1929.9,1929.8,5.88889696]
[1746691469194,5.18118056,1930.1,1929.8,6.67599696]
[1746691469430,5.18118056,1930.1,1929.9,1.77063132]
[1746691469611,5.18161562,1929.9,1929.8,6.67599696]
[1746691469907,5.18161562,1929.9,1929.8,0.7871]
[1746691471433,5.18142327,1930.0,1929.8,0.7871]
[1746691471596,5.18161562,1929.9,1929.8,0.7871]
[1746691471798,5.18161562,1929.9,1929.8,6.8671]
[1746691472218,5.18161562,1929.9,1929.8,7.01461611]
[1746691474642,5.18161562,1929.9,1929.8,6.22751611]
[1746691475340,5.24638497,1929.9,1929.8,6.22751611]
[1746691475523,6.36575234,1929.9,1929.8,6.22751611]
[1746691475931,6.30098299,1929.9,1929.8,6.22751611]
[1746691476241,5.94728872,1930.0,1929.8,6.22751611]
[1746691476242,5.18151883,1930.0,1929.9,0.8211]
[1746691476443,5.18134715,1930.0,1929.9,2.59173132]
[1746691476610,5.18134715,1930.0,1929.9,2.73899248]
[1746691476962,5.18134715,1930.0,1929.9,8.81899248]
[1746691477743,5.18134715,1930.0,1929.9,7.04836116]
[1746691477919,6.28237015,1930.0,1929.9,6.22726116]
[1746691480774,7.10707015,1930.0,1929.9,0.14726116]
[1746691480980,7.65707015,1930.0,1929.9,0.14726116]
[1746691481186,6.00658413,1929.8,1929.7,6.08]
[1746691481344,7.19019416,1929.8,1929.7,6.08]
[1746691483080,5.18188413,1929.8,1929.7,6.08]
[1746691483442,5.18188413,1929.8,1929.7,6.21717768]
[1746691484879,5.18178458,1929.9,1929.7,7.00507768]
[1746691485064,5.18188413,1929.8,1929.7,7.00507768]
[1746691488961,5.18175908,1929.9,1929.7,7.00507768]
[1746691489164,5.18175908,1929.9,1929.7,7.88524275]
[1746691489987,5.18149443,1930.0,1929.7,7.88524275]
[1746691490190,5.18149443,1930.0,1929.8,6.08]
[1746691490690,5.18149443,1930.0,1929.9,0.13601389]
[1746691492991,5.18052597,1930.4,1930.0,0.8089]
[1746691493299,5.17954118,1930.7,1930.3,7.75996375]
[1746691493504,5.17976531,1930.6,1930.5,0.7619]
[1746691493691,5.17976531,1930.6,1930.5,6.97541641]
[1746691494091,5.17960278,1930.7,1930.5,6.97541641]
[1746691496857,5.17933598,1930.8,1930.6,6.08]
[1746691497150,5.17903422,1930.9,1930.7,0.1314771]
[1746691497518,5.17903422,1930.9,1930.8,6.08]
[1746691498130,5.17903422,1930.9,1930.8,6.21143858]
[1746691500164,0.06473537,1931.1,1930.8,7.01823858]
[1746691500321,5.1786639,1931.0,1930.9,6.08]
[1746691500654,5.1786639,1931.0,1930.9,6.21028593]
[1746691501016,0.06473537,1931.1,1930.9,9.41214584]
[1746691501247,5.17797439,1931.3,1931.0,6.10586216]
[1746691501416,5.17839573,1931.1,1931.0,6.08]
[1746691501818,5.17809192,1931.3,1931.0,6.08]
[1746691502016,5.17771456,1931.4,1931.2,0.8113]
[1746691502449,5.17785947,1931.3,1931.2,0.8113]
[1746691502652,5.17785947,1931.3,1931.2,6.8913]
[1746691502814,5.17785947,1931.3,1931.2,6.08]
[1746691503243,5.17839573,1931.1,1931.0,6.08]
[1746691503464,0.06473571,1931.2,1930.9,0.7784]
[1746691503669,5.17857191,1931.1,1930.9,0.80425749]
[1746691504450,5.17857191,1931.1,1930.9,0.7784]
[1746691504655,5.17857191,1931.1,1931.0,6.08]
[1746691507360,5.17857191,1931.1,1931.0,7.4725]
[1746691508065,5.17857191,1931.1,1931.0,6.688]
[1746691508268,5.17857191,1931.1,1931.0,6.08]
[1746691512174,6.00417191,1931.1,1931.0,6.08]
[1746691512595,6.06890577,1931.1,1931.0,6.08]
[1746691513095,6.00417191,1931.1,1931.0,6.08]
[1746691513468,6.06890576,1931.1,1931.0,6.08]
[1746691513660,5.17857191,1931.1,1931.0,6.08]
[1746691519302,5.17857191,1931.1,1931.0,6.18511139]
[1746691522274,5.17810645,1931.3,1931.0,6.18511139]
[1746691522475,5.17824062,1931.2,1931.0,6.18511139]
[1746691522721,5.17839573,1931.1,1931.0,6.18511139]
[1746691523305,5.17839573,1931.1,1931.0,6.88354253]
[1746691525315,5.1782933,1931.2,1931.0,6.88354253]
[1746691525921,5.17839573,1931.1,1931.0,6.88354253]
[1746691526427,5.17839573,1931.1,1931.0,6.18511139]
[1746691531205,5.96339573,1931.1,1931.0,6.18511139]
[1746691531448,5.9538321,1930.9,1930.8,6.08]
[1746691531726,5.18000518,1930.5,1930.4,6.08]
[1746691531902,5.24476073,1930.5,1930.4,6.62071406]
[1746691532232,12.92650988,1930.5,1930.4,0.54071406]
[1746691532403,5.1810787,1930.1,1930.0,6.08]
[1746691532609,5.1810787,1930.1,1930.0,0.50092775]
[1746691533003,5.1809009,1930.2,1930.0,0.50092775]
[1746691533414,5.1810787,1930.1,1930.0,0.50092775]
[1746691534736,5.18093799,1930.2,1930.0,0.50092775]
[1746691535604,5.18093799,1930.2,1930.0,0.8834368]
[1746691535811,5.18031926,1930.4,1930.1,0.02591391]
[1746691536033,5.18054188,1930.3,1930.2,0.50236268]
[1746691536229,5.18038668,1930.4,1930.2,7.85063132]
[1746691536548,10.92308589,1930.5,1930.3,6.08]
[1746691536754,10.92308589,1930.5,1930.4,6.08]
[1746691537047,5.17983365,1930.6,1930.4,6.58235495]
[1746691537210,5.18000518,1930.5,1930.4,6.58235495]
[1746691540539,5.17985423,1930.6,1930.4,9.81951135]
[1746691541866,5.17985423,1930.6,1930.5,6.08]
[1746691542160,5.17959447,1930.7,1930.5,6.58097537]
[1746691542328,5.17973686,1930.6,1930.5,6.58097537]
[1746691543565,5.17959447,1930.7,1930.5,6.58097537]
[1746691543765,5.17973686,1930.6,1930.5,6.58097537]
[1746691545177,5.17956002,1930.7,1930.5,7.23907291]
[1746691545473,5.17973686,1930.6,1930.5,7.23907291]
[1746691545672,5.17973686,1930.6,1930.5,6.58097537]
[1746691546644,0.06474599,1930.7,1930.5,7.35997537]
[1746691546846,5.17967186,1930.7,1930.5,9.13060669]
[1746691547052,5.17973686,1930.6,1930.5,6.58097537]
[1746691554181,5.17916493,1930.9,1930.6,0.8005]
[1746691554384,5.97827538,1931.0,1930.7,6.105869]
[1746691554576,5.17912409,1930.9,1930.7,6.52541826]
[1746691555075,5.17920033,1930.8,1930.7,6.52541826]
[1746691555281,5.17920033,1930.8,1930.7,6.49954926]
[1746691562256,6.00680033,1930.8,1930.7,6.49954926]
[1746691562457,7.13184943,1930.8,1930.7,6.08]
[1746691562660,7.19659675,1930.8,1930.7,6.46505137]
[1746691563363,12.91559675,1930.8,1930.7,6.08]
[1746691563577,12.85084943,1930.8,1930.7,6.08]
[1746691564068,13.33538747,1930.8,1930.7,6.08]
[1746691564257,5.18081027,1930.2,1930.1,6.08]
[1746691564696,5.18081027,1930.2,1930.1,6.46549584]
[1746691565809,5.18081027,1930.2,1930.1,0.38549584]
[1746691565810,15.27217171,1930.2,1930.1,0.38549584]
[1746691566066,5.18212905,1929.8,1929.6,6.08]
[1746691566343,5.18174072,1929.9,1929.7,8.45863132]
[1746691566508,5.18188413,1929.8,1929.7,6.44147708]
[1746691570456,0.7576,1930.2,1929.7,8.2121084]
[1746691570664,5.18161562,1929.9,1929.8,6.08]
[1746691570979,5.18161562,1929.9,1929.8,6.44151238]
[1746691572362,5.18153624,1930.0,1929.8,6.44151238]
[1746691572571,5.18161562,1929.9,1929.8,6.44151238]
[1746691574161,0.7576,1930.2,1929.8,7.83806362]
[1746691574367,5.18092855,1930.2,1929.9,6.08]
[1746691574541,5.18092855,1930.2,1930.0,0.36145694]
[1746691574752,5.18071526,1930.3,1930.0,0.36145694]
[1746691574934,5.18091049,1930.2,1930.0,0.36145694]
[1746691575358,5.18086256,1930.2,1930.0,0.36145694]
[1746691575559,5.18086256,1930.2,1930.0,1.00560263]
[1746691576163,5.18067599,1930.3,1930.0,1.00560263]
[1746691576558,10.36146665,1930.3,1930.0,1.00560263]
[1746691576871,5.18100916,1930.2,1930.0,0.36145694]
[1746691577177,5.1810787,1930.1,1930.0,0.36145694]
[1746691578076,5.1810787,1930.1,1930.0,6.44145694]
[1746691578291,5.18097675,1930.2,1930.0,6.44145694]
[1746691579683,5.1810787,1930.1,1930.0,6.44145694]
[1746691579868,7.0055602,1930.1,1930.0,6.44145694]
[1746691580370,7.07032798,1930.1,1930.0,6.44145694]
[1746691581067,7.07032798,1930.1,1930.0,6.08]
[1746691581270,7.07032798,1930.1,1930.0,6.41315722]
[1746691581784,5.24584648,1930.1,1930.0,6.41315722]
[1746691581965,5.1810787,1930.1,1930.0,6.41315722]
[1746691582976,5.18048158,1930.4,1930.0,6.08]
[1746691583141,5.18048158,1930.4,1930.1,0.33401381]
[1746691583467,5.18054188,1930.3,1930.2,6.08]
[1746691583771,5.18010973,1930.5,1930.2,7.85147403]
[1746691583971,5.18010973,1930.5,1930.3,6.10589533]
[1746691584153,10.36036413,1930.5,1930.3,6.10589533]
[1746691584350,5.18010973,1930.5,1930.4,0.33304221]
[1746691584564,5.18010973,1930.5,1930.3,6.10589533]
[1746691584857,5.18010973,1930.5,1930.4,0.33231488]
[1746691585062,5.18010973,1930.5,1930.3,6.83441872]
[1746691585259,5.17986871,1930.6,1930.4,0.33231488]
[1746691585572,5.17961819,1930.7,1930.3,6.86031155]
[1746691585763,5.17961819,1930.7,1930.4,0.33231488]
[1746691585957,5.17979019,1930.6,1930.3,6.86031155]
[1746691586165,5.17979019,1930.6,1930.4,1.01832747]
[1746691586889,5.17962154,1930.7,1930.4,1.01832747]
[1746691587781,5.1798117,1930.6,1930.4,1.01832747]
[1746691588176,5.18000518,1930.5,1930.4,1.01832747]
[1746691588382,5.18000518,1930.5,1930.4,0.33229631]
[1746691588581,5.18027351,1930.4,1930.3,6.08]
[1746691588876,5.18027351,1930.4,1930.3,6.41224864]
[1746691589077,5.24503089,1930.4,1930.3,6.41224864]
[1746691589548,5.24503089,1930.4,1930.3,0.33224864]
[1746691589753,5.18134715,1930.0,1929.9,6.08]